Cogmind - Beta 15 @@@ ROGUE MODE // 2025.06.06 @ 17:13:22 Player: SuperSwiss Result: Destroyed by D-53 Grenadier with Mini Grenade Launcher Performance ------------- Evolutions (0) 0 Regions Visited (2) 400 Robots Destroyed (27) 135 Value Destroyed (479) 479 Prototype IDs (0) 0 Alien Tech Used (0) 0 Bonus (0) 0 TOTAL SCORE: 1014 Bonus ------- None Cogmind --------- Core Integrity 0/250 Matter 286/300 Energy 93/100 System Corruption 0% Temperature Cool (0) Movement Rolling (130) Ox2 Location -10/Mines Parts ------- > --- POWER (1) -------- (None) > --- PROPULSION (2) --- Compact Wheel > --- UTILITY (2) ------ High-capacity Storage Unit > --- WEAPON (2) ------- Assault Rifle Light Assault Rifle > --- INVENTORY (20) --- Ion Engine Ion Engine Light Treads Wheel Compact Wheel Compact Wheel Improved Heat Sink Cooling System Improved Terrain Scanner Assault Rifle Light Assault Rifle Light Cannon Mini Grenade Launcher Mini Grenade Launcher Mini Grenade Launcher Mini Grenade Launcher Mining Laser Peak State ------------ > --- POWER ------------ Light Ion Engine > --- PROPULSION ------- Light Treads Compact Wheel > --- UTILITY ---------- High-capacity Storage Unit Seismic Detector > --- WEAPON ----------- Medium Laser Assault Rifle > --- INVENTORY -------- Light Treads Wheel Wheel Improved Heat Sink Improved Terrain Scanner Light Assault Rifle Light Assault Rifle Light Cannon Mini Grenade Launcher Mini Grenade Launcher Mini Grenade Launcher Mini Grenade Launcher Mining Laser [Rating: 9] Favorites ----------- Power Light Ion Engine Engine Light Ion Engine Propulsion Light Treads Treads Light Treads Wheel Compact Wheel Utility Seismic Detector Device Seismic Detector Storage High-capacity Storage Unit Weapon Assault Rifle Energy Gun Medium Laser Ballistic Gun Assault Rifle Special Weapon Mining Laser Build | -11 -10 -10 ------- Run | Yrd Mat Min Slots Evolved . | . . . Power . | . . . Propulsion . | . . . Utility . | . . . Weapon . | . . . Parts Attached 17 | 7 8 2 Power 3 | 1 2 . Engine 3 | 1 2 . Core . | . . . Reactor . | . . . Propulsion 4 | 2 1 1 Treads 2 | 2 . . Leg . | . . . Wheel 2 | . 1 1 Hover . | . . . Flight . | . . . Utility 3 | 2 1 . Device 1 | 1 . . Storage 2 | 1 1 . Processor . | . . . Hackware . | . . . Protection . | . . . Artifact . | . . . Weapon 7 | 2 4 1 Energy Gun 2 | 1 1 . Energy Cannon . | . . . Ballistic Gun 4 | 1 2 1 Ballistic Cannon . | . . . Launcher . | . . . Special Weapon 1 | . 1 . Impact Weapon . | . . . Slashing Weapon . | . . . Piercing Weapon . | . . . Special Melee Weapon . | . . . Unidentified Prototypes . | . . . Parts Lost 10 | . 5 5 Power 3 | . 2 1 Propulsion 2 | . . 2 Utility 1 | . . 1 Weapon 4 | . 3 1 Highest Loss Streak 5 | . 2 5 To Critical Strikes . | . . . Average Backups 10 | 4 10 18 Power . | . . 2 Propulsion 3 | 2 3 4 Utility 2 | . 2 3 Weapon 4 | 1 4 9 Tool/Special . | . . . Unused Backups 16 | . 1 15 Power 2 | . . 2 Propulsion 3 | . . 3 Utility 3 | . . 3 Weapon 8 | . 1 7 Tool/Special . | . . . Average Slot Usage (%) 99 | . 99 97 Engine 13 | . 13 14 Treads 17 | . 17 12 Wheel 10 | . 10 14 Device 14 | . 14 14 Storage 14 | . 14 14 Energy Gun 13 | . 13 . Ballistic Gun 13 | . 12 28 Special Weapon 1 | . 1 . Peak Build Rating 9 | 7 9 9 Average Rating 7 | 5 8 8 On Entrance 5 | . 7 9 Naked Turns . | . . . Heaviest Build 50 | 13 50 49 Greatest Support 40 | 40 40 26 Greatest Overweight (x) 3 | . 3 3 Average Overweight (x) 1 | . 1 2 Largest Inventory Capacity 20 | 8 20 20 Average Capacity 17 | 7 18 20 Most Carried 20 | 7 20 19 Average Carried 10 | 5 10 18 Final Capacity 20 | 8 20 20 Final Carried 19 | 7 19 17 Class Distribution -------------------- 100% | Mutant Dominant Class ---------------- Mutant | -10/Materials Mutant | -10/Mines Resources | -11 -10 -10 ----------- Run | Yrd Mat Min Matter Collected 604 | 269 335 . Remotely . | . . . Salvage Created 669 | 57 612 . Parts 60 | 9 51 . Haulers Intercepted 2 | . 2 . Recyclers Shooed 1 | 1 . . Parts Field Recycled . | . . . Retrieved Matter . | . . . Parts Self-Destructed . | . . . Prevented . | . . . Kills | -11 -10 -10 ------- Run | Yrd Mat Min Combat Hostiles Destroyed 20 | . 20 . Guns 19 | . 19 . Cannons 1 | . 1 . Classes Destroyed 5 | 1 4 . Tunneler 4 | 3 1 . Hauler 2 | . 2 . Operator 1 | . 1 . Swarmer 12 | . 12 . Grunt 8 | . 8 . Best Kill Streak 4 | 1 4 . Combat Bots Only 4 | . 4 . Max Kills in Single Turn 2 | 1 2 . Gunslinging 1 | . 1 . Exploded . | . . . Melee . | . . . Uniques/NPCs Destroyed . | . . . Combat | -11 -10 -10 -------- Run | Yrd Mat Min Hostile Shots Fired 118 | . 106 12 Missed 41 | . 38 3 Hits 77 | . 68 9 Projectile 77 | . 68 9 AOE 11 | . . 11 Damage Taken 1135 | . 789 346 Core 259 | . 168 91 Absorbed by Shields . | . . . Core Remaining (%) 100 | 100 . . Volleys Fired 89 | 8 79 2 Largest 2 | 2 2 2 Hottest 100 | 60 100 40 Shots Fired 173 | 16 154 3 Gun 171 | 16 152 3 Cannon . | . . . Launcher . | . . . Special 2 | . 2 . Kinetic 90 | 8 79 3 Thermal 53 | . 53 . Explosive . | . . . Electromagnetic 30 | 8 22 . Robot Hit Streak 14 | 6 14 1 Robot Miss Streak 3 | 3 3 2 Penetration Max . | . . . Secondary Targets 1 | . 1 . Max Gunslinging Chain 1 | . 1 . Shots Hit Robots 107 | 8 98 1 Core Hits 42 | 4 37 1 Critical Kills . | . . . Critical Parts Destroyed . | . . . Critical Strikes 3 | . 3 . Burn 3 | . 3 . Melee Attacks . | . . . Impact . | . . . Slashing . | . . . Piercing . | . . . Sneak Attacks . | . . . Combat Hostiles . | . . . Follow-up Attacks . | . . . Damage Inflicted 1375 | 105 1248 22 Guns 1351 | 105 1224 22 Cannons . | . . . Explosions . | . . . Melee . | . . . Ramming . | . . . Kinetic 617 | 25 570 22 Thermal 512 | . 512 . Explosive . | . . . Electromagnetic 246 | 80 166 . Impact . | . . . Slashing . | . . . Piercing . | . . . Highest Corruption . | . . . Average Corruption . | . . . Corruption Purged . | . . . Corruption Blocked . | . . . Overload Shots . | . . . Overflow Damage . | . . . Projectiles . | . . . Explosions . | . . . Melee . | . . . Knockbacks . | . . . Impact . | . . . Kinetic . | . . . Secondary . | . . . Self-Inflicted Damage . | . . . Shots . | . . . Rammed . | . . . Targets Rammed . | . . . Kicked . | . . . Crushed . | . . . Highest Temperature 227 | . 227 . Average Temperature 62 | . 62 . Received Heat Transfer 354 | . 354 . Effects 4 | . 4 . Energy Bleed 1 | . 1 . Interference 3 | . 3 . Siege Activations . | . . . Martial Activations . | . . . Shielding Activations . | . . . Robots Disrupted . | . . . Combat Hostiles . | . . . Robots Corrupted . | . . . Combat Hostiles . | . . . Parts Fried . | . . . Impact Corruptions . | . . . Robots Melted . | . . . Combat Hostiles . | . . . Parts Melted 1 | . 1 . Heat Transferred 1715 | . 1715 . Parts Sabotaged . | . . . Parts Stolen . | . . . Parts Stripped . | . . . Power Chain Reactions . | . . . Alert | -11 -10 -10 ------- Run | Yrd Mat Min Maximum Alert Level 1 | . 1 . Low Security (%) 96 | 100 96 100 Level 1 3 | . 3 . Level 2 . | . . . Level 3 . | . . . Level 4 . | . . . Level 5 . | . . . High Security . | . . . Max Security . | . . . Peak Influence 237 | 5 237 88 Initial 88 | . . 88 Average 76 | 1 86 70 Influence Increases 658 | 15 643 . Destroy 0b10 Robot/C 400 | . 400 . Destroy 0b10 Robot/NC 35 | 15 20 . Destroy Leader 94 | . 94 . Successful Hack 21 | . 21 . Destroy Structure 3 | . 3 . Lose Combat Pursuer 105 | . 105 . Influence Decreases 650 | 15 414 221 Entered New Map 141 | . . 141 Time Decay 419 | 15 374 30 Lost Part 90 | . 40 50 Squads Dispatched 3 | . 3 . Investigation 1 | . 1 . Extermination . | . . . Reinforcement 2 | . 2 . Assault . | . . . Garrison . | . . . Intercept . | . . . Searches Triggered . | . . . Construction Impeded . | . . . Haulers Reinforced . | . . . Active Scanning Responses . | . . . Cargo Convoy Interrupts . | . . . Stealth | -11 -10 -10 --------- Run | Yrd Mat Min Distress Signals 2 | . 2 . Communications Jammed . | . . . Distress Signals . | . . . Times Spotted 47 | . 45 2 Peak Tracking Total 7 | . 7 2 Tactical Retreats 5 | . 5 . Traps | -11 -10 -10 ------- Run | Yrd Mat Min Traps Triggered 1 | . 1 . Indirectly . | . . . Trap Hack Attempts . | . . . Triggered . | . . . Disarmed . | . . . Reprogrammed . | . . . Reused . | . . . Traps Extracted . | . . . Installed . | . . . Triggered . | . . . Machines | -11 -10 -10 ---------- Run | Yrd Mat Min Machines Disabled . | . . . Max in Single Turn . | . . . Machines Repaired . | . . . Machines Dismantled . | . . . Machines Sabotaged . | . . . Overloaded Fab Kills . | . . . Hacking | -11 -10 -10 --------- Run | Yrd Mat Min Machines Accessed 6 | . 6 . Terminals 6 | . 6 . Fabricators . | . . . Repair Stations . | . . . Recycling Units . | . . . Scanalyzers . | . . . Garrison Access . | . . . Total Hacks 16 | . 16 . Successful 11 | . 11 . Failed 5 | . 5 . Catastrophic 1 | . 1 . Database Lockouts . | . . . Manual 8 | . 8 . Terminals 16 | . 16 . Fabricators . | . . . Repair Stations . | . . . Recycling Units . | . . . Scanalyzers . | . . . Garrison Access . | . . . Terminal Hacks 6 | . 6 . Locate Traps 2 | . 2 . Hauler Manifests 1 | . 1 . Registered Components 1 | . 1 . Zone Layout 2 | . 2 . Fabricator Hacks . | . . . Repair Station Hacks . | . . . Recycling Unit Hacks . | . . . Scanalyzer . | . . . Garrison Access Hacks . | . . . Unauthorized Hacks 5 | . 5 . Terminals 5 | . 5 . Skim 5 | . 5 . Fabricators . | . . . Repair Stations . | . . . Recycling Units . | . . . Scanalyzers . | . . . Garrison Access . | . . . Data Cores Recovered 1 | . 1 . Used . | . . . Hacking Detections 6 | . 6 . Full Trace Events . | . . . Feedback Events . | . . . Feedback Blocked . | . . . Robot Schematics Acquired . | . . . Robots Built . | . . . Authchips . | . . . Time . | . . . Total Robot Build Rating . | . . . Part Schematics Acquired . | . . . Parts Built . | . . . Authchips . | . . . Time . | . . . Total Part Build Rating . | . . . Parts Repaired . | . . . Time . | . . . Parts Recycled . | . . . Recycled Matter . | . . . Retrieved Matter . | . . . Retrieved Components . | . . . Parts Scanalyzed . | . . . Part Schematics Acquired . | . . . Parts Damaged . | . . . Bothacking | -11 -10 -10 ------------ Run | Yrd Mat Min Used RIF Installer . | . . . Robots Hacked . | . . . Non-combat . | . . . Combat . | . . . Robot Hacks Applied . | . . . Relay Couplers Released . | . . . Fabnet Peak Effective % . | . . . Robots Rewired . | . . . Allies Hacked . | . . . Hacks Repelled . | . . . Allies | -11 -10 -10 -------- Run | Yrd Mat Min Total Allies . | . . . Largest Group . | . . . Highest-Rated Group . | . . . Highest-Rated Ally . | . . . Total Orders . | . . . Ally Attacks . | . . . Total Damage . | . . . Kills . | . . . Allies Corrupted . | . . . Allies Melted . | . . . Intel | -11 -10 -10 ------- Run | Yrd Mat Min Active Infowar (turns) 1500 | 33 1405 62 Seismic 1500 | 33 1405 62 Robot Analysis Total . | . . . Derelict Logs Recovered . | . . . Drone Launches . | . . . Drone Recoveries . | . . . Exploration | -11 -10 -10 ------------- Run | Yrd Mat Min Turns Passed 1668 | 182 1420 66 Spaces Moved 904 | 92 770 42 Core 5 | 5 . . Treads 207 | 87 120 . Legs . | . . . Wheels 692 | . 650 42 Hover . | . . . Flight . | . . . Fastest Speed 50 | 50 130 105 Average Speed 143 | 154 142 142 Slowest Speed 240 | 160 240 145 Overloaded Moves . | . . . Propulsion Burnouts . | . . . Robots Hopped . | . . . Potential Cave-ins . | . . . Cave-ins Triggered . | . . . Exploration Rate (%) 36 | 6 93 11 Regions Visited 2 Branch Regions 1 Pre-discovered Areas . | . . . Known Exits Taken . | . . . Unknown Exits Taken 2 | 1 1 . Scrap Searched . | . . . Spaces Dug . | . . . Terrain Destroyed 1 | . 1 . Melee . | . . . Projectile 1 | . 1 . AOE . | . . . Terrain Rammed . | . . . Walls Destroyed . | . . . Machines Disabled . | . . . Actions | -11 -10 -10 --------- Run | Yrd Mat Min Total 1096 | 113 937 46 Wait 60 | . 60 . Move 902 | 91 769 42 Hop . | . . . Pick Up 23 | 7 16 . Fast Attach 9 | 7 2 . Attach 6 | . 4 2 Detach 1 | . 1 . Swap 4 | . 4 . Drop 2 | . 2 . Fire 89 | 8 79 2 Melee . | . . . Ram . | . . . Kick . | . . . Crush . | . . . Escape Stasis . | . . . Rewire . | . . . Trap . | . . . Miscellaneous . | . . . Route ------- -11/Scrapyard -10/Materials (discovered 4 exits: [*Mat x2] / [*Min x2]) -10/Mines History --------- Turn | Location | Event 33 | -11/Scrapyard | Discovered new exit (range 14) 183 | -11/Scrapyard | Entered Materials 317 | -10/Materials | Build established: Mutant 341 | -10/Materials | Discovered new exit (range 16) 367 | -10/Materials | Discovered new exit (range 15) 883 | -10/Materials | Derelicts attacked the area 1029 | -10/Materials | Core integrity fell below 50% 1093 | -10/Materials | Discovered new exit (range 16) 1196 | -10/Materials | Discovered new exit (range 3) 1603 | -10/Materials | Entered Mines 1604 | -10/Mines | Assembled infested the area 1666 | -10/Mines | Core integrity fell below 20% 1669 | -10/Mines | Destroyed by D-53 Grenadier with Mini Grenade Launcher Last Messages --------------- 01579_ K-01 Serf collects debris. 01580_ S-10 Pest destroyed. 01583_ Acquired 18 matter. 01584_ K-01 Serf collects debris. 01596_ R-06 Scavenger collects Flight Unit. 01596_ K-01 Serf collects debris. 01602_ R-06 Scavenger collects Lgt. Ion Engine. LOCATION=UNKNOWN GOAL=ESCAPE Something is scanning the area. 01604_ ALERT: Infestation in the mines, dispatching Demolisher response squad. 01657_ C-30 ARC bursts open, deploying its payload. 01657_ D-53 Grenadier unfolds itself. 01657_ Lgt. Treads destroyed. 01658_ HV Slug penetrates Wall. 01661_ Assault Rifle destroyed. 01665_ Wheel destroyed. 01665_ Ion Engine destroyed. 01665_ Seismic Detector destroyed. 01669_ The unstable cave ceiling collapses. Map ----- +----------------------------------------------------+ | ??????????????????????????????????????????? | | ??????????????????????????????????????????? | | ??????????????????????????????????????????? | | ??????????????????????????????????????????? | | ??????????????????????????????????????????? | | ??????????????????????????????????????????? | | ??????????????????????????????????????????? | | ??????????????????????????????????????????? | | ??????????????????????????????????????????? | | ??????????????????????????????????????????? | | ??????????????????????????????????????????? | | ??????????????????????????????????????????? | | ??????????????????????????????????????????? | | ????????? ???????????????????????????????? | | ????????? ???????????????????????????????? | | ????????? ???????????????????????????????? | | ????????# ????????###????????????????????? | | ????????# ??????## ##???????????????????? | | ????????# #????## #???????????????????? | | ????????# ???? #???????????????????? | | ????????# #??### ##??????????????????? | | ????????# #?## ###????????????????? | | ???????## ### #???????????#????? | | ???????# # #????????? ##???? | | ??????## #???????# ???? | | ??????# @ #??????? ???? | | ??????# # ##?????$ ??? | | ??????+ # #???? ????? | | ??????+ ###### #???????? | | ??????# ## #????????? | | ?????## #### #????????? | | ?????# dd ###### #???????? | | ?????# ## % ### ######?????????????????? | | ?????####? ### #??????????????????????? | | ?????????## #??????????????????????? | | ??????????## #??????????????????????? | | ???????????#########??????????????????????? | | ??????????????????????????????????????????? | | | | | | | | | | | | | | | | | | | | | | | | | +----------------------------------------------------+ Best States ------------- Heat Dissipation 25 Energy Generation 10 Energy Capacity 250 Matter Stores 300 Matter Capacity 300 Sight Range 16 Terrain Scan Density 10 Evasion (%) 40 Recoil Reduction 2 Item Schematics ----------------- None Robot Schematics ------------------ None Fabricated ------------ Nothing Repaired ---------- Nothing Alien Tech Used ----------------- None Achievements -------------- None Challenges ------------ None Game ------ Seed ControlMetafieldExpander Manual? 0 Play Time 00:15:00 Cumulative 75.2 hours Start 2025.06.06 @ 16:58:46 End 2025.06.06 @ 17:13:22 Sessions 1 Manual Loads 0 Difficulty Rogue Special Mode None Game No. 79 Rogue 76 Adventurer 0 Explorer 3 Win Type - Total 0 Types 0/0/0/0/0/0/0/0/0/0 Lore% 12 Gallery% 38 Achievement% 35 Wizard Run 0 Options --------- Layout 0 ASCII 0 Keyboard 0 Movement Numpad Keybinds 0 Fullscreen 2 Font 16/SmallcapsGlow Map View 88x55 Zoom Use 0% Tactical HUD 1 Map Filters NONE Filters NONE Steam 1 RUN: 9e0483bf-b1f2-4feb-ab07-21436be5dd1b